fUST/lending_fUST_20241217
["ID","MTS","AMOUNT","RATE_DAILY","PERIOD"]
[345684594,1734424252688,-500.0,0.00025205,6]
[345684596,1734424252697,-500.0,0.00025205,6]
[345684598,1734424252707,-500.0,0.00025205,6]
[345684600,1734424252716,-500.0,0.00025205,6]
[345684602,1734424252725,-500.0,0.00025205,6]
[345684604,1734424252734,-510.64022421,0.00025205,6]
[345684606,1734424252743,-500.0,0.00025205,6]
[345684608,1734424252753,-205.08890317,0.00025205,6]
[345684610,1734424252762,-500.0,0.00025205,6]
[345684612,1734424252771,-501.95190898,0.00025205,6]
[345684614,1734424252781,-500.0,0.00025205,6]
[345684616,1734424252790,-214.83013616,0.00025205,6]
[345684618,1734424252799,-500.0,0.00025205,6]
[345684620,1734424252808,-794.02,0.00025205,6]
[345684622,1734424252818,-500.0,0.00025205,6]
[345684624,1734424252827,-500.0,0.00025205,6]
[345684626,1734424252836,-500.0,0.00025205,6]
[345684628,1734424252845,-500.0,0.00025205,6]
[345684630,1734424252854,-500.0,0.00025205,6]
[345684632,1734424252863,-505.6431312,0.00025205,6]
[345684634,1734424252872,-711.23,0.00025205,6]
[345684636,1734424252882,-500.0,0.00025205,6]
[345684638,1734424252891,-500.0,0.00025205,2]
[345684640,1734424252899,-500.0,0.00025205,6]
[345684642,1734424252909,-500.0,0.00025205,6]
[345684644,1734424252918,-500.0,0.00025205,6]
[345684646,1734424252927,-500.0,0.00025205,6]
[345684648,1734424252937,-349.53519357,0.00025205,6]
[345684650,1734424252946,-500.0,0.00025205,6]
[345684652,1734424252955,-500.0,0.00025205,6]
[345684654,1734424252966,-844.97,0.00025205,6]
[345684656,1734424252975,-500.0,0.00025205,6]
[345684658,1734424252984,-500.0,0.00025205,6]
[345684660,1734424252993,-500.0,0.00025205,6]
[345684662,1734424253003,-546.04702644,0.00025205,6]
[345684664,1734424253012,-500.0,0.00025205,6]
[345684666,1734424253022,-500.0,0.00025205,6]
[345684668,1734424253032,-500.0,0.00025205,6]
[345684670,1734424253043,-500.0,0.00025205,6]
[345684672,1734424253053,-500.0,0.00025205,6]
[345684674,1734424253062,-788.73,0.00025205,6]
[345684676,1734424253072,-500.0,0.00025205,6]
[345684678,1734424253082,-500.0,0.00025205,6]
[345684680,1734424253092,-500.0,0.00025205,6]
[345684682,1734424253101,-500.0,0.00025205,6]
[345684684,1734424253110,-627.92,0.00025205,6]
[345684686,1734424253120,-500.0,0.00025205,6]
[345684688,1734424253129,-500.0,0.00025205,6]
[345684690,1734424253139,-910.29,0.00025205,6]
[345684693,1734424253148,-500.0,0.00025205,6]
[345684695,1734424253157,-500.0,0.00025205,6]
[345684697,1734424253166,-774.98,0.00025205,6]
[345684699,1734424253175,-500.0,0.00025205,6]
[345684701,1734424253184,-500.0,0.00025205,6]
[345684703,1734424253193,-500.0,0.00025205,6]
[345684704,1734424253202,-500.0,0.00025205,6]
[345684707,1734424253211,-503.51640408,0.00025205,6]
[345684709,1734424253220,-500.0,0.00025205,6]
[345684710,1734424253229,-500.0,0.00025205,6]
[345684712,1734424253238,-1553.26,0.00025205,6]
[345684714,1734424253247,-500.0,0.00025205,6]
[345684717,1734424253257,-500.0,0.00025205,6]
[345684719,1734424253266,-500.0,0.00025205,6]
[345684721,1734424253275,-609.29875619,0.00025205,6]
[345684723,1734424253285,-500.0,0.00025205,2]
[345684725,1734424253294,-500.0,0.00025205,6]
[345684727,1734424253303,-500.0,0.00025205,6]
[345684729,1734424253313,-523.36811233,0.00025205,6]
[345684731,1734424253322,-412.28444827,0.00025205,6]
[345684733,1734424253331,-604.52,0.00025205,6]
[345684735,1734424253341,-987.23,0.00025205,6]
[345684737,1734424253350,-780.46,0.00025205,6]
[345684739,1734424253359,-718.59,0.00025205,6]
[345684741,1734424253368,-500.0,0.00025205,6]
[345684743,1734424253377,-500.0,0.00025205,6]
[345684745,1734424253387,-500.0,0.00025205,6]
[345684747,1734424253395,-500.0,0.00025205,6]
[345684749,1734424253404,-207.78833645,0.00025205,6]
[345684751,1734424253414,-500.0,0.00025205,6]
[345684753,1734424253423,-500.0,0.00025205,6]
[345684754,1734424253432,-500.0,0.00025205,6]
[345684756,1734424253441,-500.0,0.00025205,6]
[345684759,1734424253450,-1293.26,0.00025205,6]
[345684761,1734424253460,-500.0,0.00025205,6]
[345684763,1734424253469,-500.0,0.00025205,6]
[345684765,1734424253478,-1910.85,0.00025205,6]
[345684767,1734424253487,-500.0,0.00025205,6]
[345684769,1734424253497,-500.0,0.00025205,6]
[345684771,1734424253507,-2573.33,0.00025205,6]
[345684773,1734424253516,-500.0,0.00025205,6]
[345684775,1734424253525,-500.0,0.00025205,6]
[345684776,1734424253534,-591.97,0.00025205,6]
[345684777,1734424253544,-500.0,0.00025205,6]
[345684778,1734424253553,-2286.48,0.00025205,6]
[345684779,1734424253563,-500.0,0.00025205,6]
[345684780,1734424253572,-500.0,0.00025205,6]
[345684781,1734424253581,-500.0,0.00025205,6]
[345684782,1734424253590,-500.0,0.00025205,6]
[345684783,1734424253599,-511.93308915,0.00025205,6]
[345684784,1734424253608,-500.0,0.00025205,6]
[345684785,1734424253617,-500.0,0.00025205,6]
[345684786,1734424253626,-526.69,0.00025205,6]
[345684788,1734424253636,-510.07862602,0.00025205,6]
[345684790,1734424253645,-903.29,0.00025205,6]
[345684792,1734424253654,-500.0,0.00025205,6]
[345684794,1734424253663,-500.0,0.00025205,6]
[345684796,1734424253673,-500.0,0.00025205,6]
[345684798,1734424253682,-1649.3,0.00025205,2]
[345684800,1734424253691,-500.0,0.00025205,6]
[345684802,1734424253700,-500.0,0.00025205,6]
[345684804,1734424253710,-500.0,0.00025205,6]
[345684806,1734424253719,-500.0,0.00025205,6]
[345684808,1734424253728,-712.81,0.00025205,6]
[345684810,1734424253737,-500.0,0.00025205,6]
[345684812,1734424253746,-500.0,0.00025205,6]
[345684814,1734424253755,-500.0,0.00025205,6]
[345684816,1734424253764,-500.0,0.00025205,6]
[345684818,1734424253773,-286.43,0.00025205,6]
[345684820,1734424253782,-506.54642274,0.00025205,6]
[345684822,1734424253791,-464.32157992,0.00025205,6]
[345684824,1734424253800,-500.0,0.00025205,6]
[345684826,1734424253810,-500.0,0.00025205,6]
[345684828,1734424253819,-500.0,0.00025205,6]
[345684830,1734424253827,-521.49,0.00025205,6]
[345684832,1734424253837,-500.0,0.00025205,6]
[345684834,1734424253846,-609.57324968,0.00025205,6]
[345684836,1734424253855,-677.86,0.00025205,6]
[345684838,1734424253864,-1715.94,0.00025205,6]
[345684840,1734424253873,-545.7,0.00025205,6]
[345684842,1734424253883,-500.0,0.00025205,6]
[345684845,1734424253892,-500.0,0.00025205,6]
[345684847,1734424253901,-500.0,0.00025205,6]
[345684849,1734424253911,-500.0,0.00025205,6]
[345684850,1734424253920,-500.0,0.00025205,6]
[345684852,1734424253930,-500.0,0.00025205,6]
[345684854,1734424253940,-517.11,0.00025205,6]
[345684857,1734424253949,-3107.62,0.00025205,6]
[345684859,1734424253959,-500.0,0.00025205,6]
[345684860,1734424253968,-500.0,0.00025205,6]
[345684863,1734424253978,-500.0,0.00025205,6]
[345684864,1734424253987,-500.0,0.00025205,6]
[345684867,1734424253997,-227.79863845,0.00025205,6]
[345684869,1734424254006,-500.0,0.00025205,6]
[345684871,1734424254015,-504.76636378,0.00025205,6]
[345684872,1734424254025,-500.0,0.00025205,6]
[345684874,1734424254034,-500.0,0.00025205,6]
[345684877,1734424254043,-500.0,0.00025205,6]
[345684878,1734424254053,-1887.89,0.00025205,6]
[345684880,1734424254062,-930.43,0.00025205,6]
[345684882,1734424254071,-500.0,0.00025205,6]
[345684885,1734424254080,-500.0,0.00025205,6]
[345684886,1734424254090,-1000.0,0.00025205,2]
[345684889,1734424254099,-500.0,0.00025205,6]
[345684890,1734424254108,-500.0,0.00025205,6]
[345684892,1734424254117,-500.0,0.00025205,6]
[345684894,1734424254126,-2642.26,0.00025205,6]
[345684896,1734424254136,-500.0,0.00025205,6]
[345684898,1734424254145,-870.14,0.00025205,6]
[345684900,1734424254155,-177.46221645,0.00025205,6]
[345684902,1734424254164,-1026.18,0.00025205,6]
[345684904,1734424254173,-516.97499526,0.00025205,6]
[345684906,1734424254182,-648.52,0.00025205,6]
[345684908,1734424254192,-500.0,0.00025205,6]
[345684910,1734424254201,-649.44,0.00025205,2]
[345684912,1734424254210,-500.0,0.00025205,6]
[345684915,1734424254221,-314.70335149,0.00025205,6]
[345684917,1734424254231,-500.0,0.00025205,6]
[345684919,1734424254240,-500.0,0.00025205,6]
[345684921,1734424254250,-500.0,0.00025205,6]
[345684923,1734424254259,-500.0,0.00025205,6]
[345684925,1734424254268,-6832.57,0.00025205,6]
[345684927,1734424254278,-2768.81,0.00025205,6]
[345684929,1734424254286,-542.88634792,0.00025205,6]
[345684931,1734424254295,-500.0,0.00025205,6]
[345684933,1734424254304,-500.0,0.00025205,6]
[345684935,1734424254313,-1817.43,0.00025205,6]
[345684937,1734424254322,-500.0,0.00025205,6]
[345684939,1734424254331,-500.0,0.00025205,6]
[345684941,1734424254340,-7526.42,0.00025205,6]
[345684943,1734424254349,-500.0,0.00025205,6]
[345684945,1734424254358,-198.22547819,0.00025205,6]
[345684947,1734424254367,-500.0,0.00025205,6]
[345684949,1734424254376,-794.02,0.00025205,6]
[345684951,1734424254385,-463.68894693,0.00025205,6]
[345684953,1734424254394,-6481.57,0.00025205,6]
[345684955,1734424254403,-10373.72,0.00025205,6]
[345684972,1734424254547,-510.29650141,0.00025205,6]
[345684974,1734424254558,-453.13662865,0.00025205,6]
[345684976,1734424254568,-1239.75,0.00025205,6]
[345684978,1734424254578,-500.0,0.00025205,6]
[345684980,1734424254588,-1765.9,0.00025205,6]
[345684982,1734424254597,-1201.5,0.00025205,6]
[345684984,1734424254607,-783.27,0.00025205,6]
[345684986,1734424254616,-3000.0,0.00025205,30]
[345684988,1734424254625,-500.0,0.00025205,6]
[345684990,1734424254635,-1019.66,0.00025205,6]
[345684992,1734424254645,-534.42,0.00025205,6]
[345684994,1734424254667,-1653.2,0.00025205,6]
[345684996,1734424254677,-1412.43,0.00025205,6]
[345684998,1734424254687,-500.0,0.00025205,6]
[345685000,1734424254699,-500.0,0.00025205,6]
[345685002,1734424254708,-1778.41,0.00025205,5]
[345685004,1734424254718,-500.0,0.00025205,6]
[345685006,1734424254727,-500.0,0.00025205,6]
[345685008,1734424254736,-500.0,0.00025205,6]
[345685010,1734424254746,-3387.78,0.00025205,6]
[345685012,1734424254756,-1002.59,0.00025205,6]
[345685014,1734424254765,-513.47735101,0.00025205,6]
[345685016,1734424254775,-1704.13,0.00025205,6]
[345685018,1734424254784,-500.0,0.00025205,6]
[345685020,1734424254794,-500.0,0.00025205,6]
[345685022,1734424254803,-500.0,0.00025205,6]
[345685024,1734424254812,-500.0,0.00025205,6]
[345685026,1734424254822,-500.0,0.00025205,6]
[345685028,1734424254832,-500.0,0.00025205,6]
[345685030,1734424254841,-500.0,0.00025205,6]
[345685032,1734424254851,-33732.24,0.00025205,6]
[345685034,1734424254860,-3709.48,0.00025205,6]
[345685036,1734424254869,-500.0,0.00025205,6]
[345685038,1734424254879,-500.0,0.00025205,6]
[345685040,1734424254889,-500.0,0.00025205,6]
[345685042,1734424254899,-500.0,0.00025205,6]
[345685044,1734424254908,-500.0,0.00025205,6]
[345685046,1734424254917,-1705.57,0.00025205,6]
[345685049,1734424254927,-500.0,0.00025205,6]
[345685051,1734424254936,-500.0,0.00025205,6]
[345685053,1734424254945,-264.4285523,0.00025205,6]
[345685055,1734424254955,-1836.6,0.00025205,6]
[345685057,1734424254964,-505.34075937,0.00025205,6]
[345685059,1734424254974,-704.62,0.00025205,6]
[345685061,1734424254983,-509.29222332,0.00025205,6]
[345685063,1734424254993,-979.48,0.00025205,6]
[345685065,1734424255002,-512.21585016,0.00025205,6]
[345685067,1734424255012,-500.0,0.00025205,6]
[345685069,1734424255022,-500.0,0.00025205,6]
[345685071,1734424255035,-500.0,0.00025205,6]
[345685073,1734424255046,-515.8002428,0.00025205,6]
[345685075,1734424255056,-4330.72,0.00025205,6]
[345685077,1734424255067,-500.0,0.00025205,6]
[345685079,1734424255078,-500.0,0.00025205,6]
[345685081,1734424255088,-610.85,0.00025205,6]
[345685083,1734424255098,-500.0,0.00025205,6]
[345685085,1734424255107,-355.47254111,0.00025205,6]
[345685087,1734424255117,-500.0,0.00025205,6]
[345685089,1734424255127,-500.0,0.00025205,6]
[345685091,1734424255137,-2529.02,0.00025205,6]
[345685093,1734424255147,-1079.08,0.00025205,6]
[345685094,1734424255157,-500.0,0.00025205,6]
[345685095,1734424255167,-500.0,0.00025205,6]
[345685096,1734424255177,-2543.43,0.00025205,6]
[345685097,1734424255187,-500.0,0.00025205,6]
[345685098,1734424255197,-500.0,0.00025205,6]
[345685099,1734424255207,-530.48,0.00025205,6]
[345685100,1734424255218,-4978.04,0.00025205,6]
[345685101,1734424255228,-500.0,0.00025205,6]
[345685102,1734424255238,-500.0,0.00025205,6]
[345685104,1734424255248,-504.62810004,0.00025205,6]
[345685106,1734424255258,-500.0,0.00025205,6]
[345685108,1734424255267,-500.0,0.00025205,6]
[345685110,1734424255277,-196.63231449,0.00025205,6]
[345685112,1734424255287,-500.0,0.00025205,6]
[345685114,1734424255297,-500.0,0.00025205,6]
[345685116,1734424255307,-1782.0,0.00025205,6]
[345685118,1734424255319,-637.23,0.00025205,6]
[345685120,1734424255328,-501.91607345,0.00025205,6]
[345685122,1734424255337,-500.0,0.00025205,6]
[345685124,1734424255347,-1595.65,0.00025205,6]
[345685126,1734424255356,-453.46881425,0.00025205,6]
[345685128,1734424255366,-435.76886045,0.00025205,6]
[345685130,1734424255375,-511.95619594,0.00025205,6]
[345685132,1734424255385,-780.44,0.00025205,6]
[345685134,1734424255395,-428.30086981,0.00025205,6]
[345685136,1734424255404,-1801.85,0.00025205,6]
[345685138,1734424255414,-1402.82,0.00025205,6]
[345685140,1734424255423,-500.0,0.00025205,6]
[345685142,1734424255432,-500.0,0.00025205,6]
[345685144,1734424255441,-542.8,0.00025205,6]
[345685146,1734424255451,-500.0,0.00025205,6]
[345685148,1734424255462,-500.0,0.00025205,6]
[345685150,1734424255473,-1166.17,0.00025205,6]
[345685152,1734424255482,-1240.63,0.00025205,6]
[345685154,1734424255492,-500.0,0.00025205,6]
[345685156,1734424255502,-1591.78,0.00025205,6]
[345685158,1734424255512,-500.0,0.00025205,6]
[345685160,1734424255522,-500.0,0.00025205,6]
[345685162,1734424255533,-511.15146433,0.00025205,6]
[345685164,1734424255544,-513.32778005,0.00025205,6]
[345685166,1734424255554,-2184.89,0.00025205,6]
[345685168,1734424255565,-500.0,0.00025205,6]
[345685170,1734424255575,-622.95848106,0.00025205,6]
[345685172,1734424255585,-500.0,0.00025205,6]
[345685174,1734424255595,-616.57358258,0.00025205,6]
[345685176,1734424255605,-887.08,0.00025205,6]
[345685179,1734424255615,-500.0,0.00025205,6]
[345685181,1734424255626,-500.0,0.00025205,6]
[345685183,1734424255637,-503.62483209,0.00025205,6]
[345685185,1734424255647,-500.0,0.00025205,6]
[345685187,1734424255666,-954.46,0.00025205,6]
[345685189,1734424255681,-500.0,0.00025205,6]
[345685191,1734424255691,-1261.96,0.00025205,6]
[345685193,1734424255700,-991.36,0.00025205,6]
[345685195,1734424255709,-2550.14,0.00025205,6]
[345685197,1734424255719,-152.677159,0.00025205,7]
[345685199,1734424255728,-152.677159,0.00025205,7]
[345685201,1734424255738,-152.677159,0.00025205,7]
[345685203,1734424255747,-3000.0,0.0002521,2]
[345685204,1734424255757,-3000.0,0.0002522,2]
[345685207,1734424255767,-254.0662397,0.00025221,2]
[345685209,1734424255776,-441.14606348,0.00025221,2]
[345685210,1734424255785,-1026.9064605,0.00025221,2]
[345685213,1734424255795,-1000.0,0.00025221,2]
[345685215,1734424255805,-1000.0,0.00025221,2]
[345685216,1734424255814,-3000.0,0.0002523,2]
[345685218,1734424255823,-3000.0,0.0002524,2]
[345685220,1734424255833,-3000.0,0.0002525,2]
[345685223,1734424255843,-3000.0,0.0002526,2]
[345685225,1734424255852,-3000.0,0.0002527,2]
[345685226,1734424255861,-3000.0,0.0002528,2]
[345685228,1734424255871,-500.0,0.00025282,6]
[345685230,1734424255880,-3000.0,0.0002529,2]
[345685233,1734424255891,-3000.0,0.000253,2]
[345685235,1734424255901,-3000.0,0.0002531,2]
[345685237,1734424255910,-3000.0,0.0002532,2]
[345685239,1734424255920,-3000.0,0.0002533,2]
[345685241,1734424255929,-3000.0,0.0002534,2]
[345685243,1734424255939,-3000.0,0.0002535,2]
[345685245,1734424255949,-3000.0,0.0002536,2]
[345685247,1734424255958,-3000.0,0.0002537,2]
[345685249,1734424255968,-3000.0,0.0002538,2]
[345685251,1734424255977,-4795.424184,0.0002539,2]
[345685253,1734424255987,-157.7823902,0.00025479,2]
[345685255,1734424255996,-500.0,0.00025479,6]
[345685257,1734424256006,-500.0,0.00025479,2]
[345685259,1734424256015,-370.83359316,0.00025479,6]
[345685260,1734424256023,-502.73967478,0.00025479,6]
[345685263,1734424256033,-500.0,0.00025479,6]
[345685264,1734424256043,-388.90427424,0.00025479,6]
[345685266,1734424256053,-525.52989356,0.00025479,6]
[345685268,1734424256063,-500.0,0.00025479,6]
[345685270,1734424256073,-500.0,0.00025479,6]
[345685272,1734424256083,-642.52,0.00025479,6]
[345685275,1734424256093,-500.0,0.00025479,6]
[345685277,1734424256103,-500.0,0.00025479,6]
[345685278,1734424256112,-535.38,0.00025479,6]
[345685281,1734424256122,-500.0,0.00025479,6]
[345685282,1734424256131,-500.0,0.00025479,6]
[345685284,1734424256141,-500.0,0.00025479,6]
[345685287,1734424256152,-500.0,0.00025479,6]
[345685288,1734424256170,-500.0,0.00025479,6]
[345685291,1734424256183,-500.0,0.00025479,6]
[345685293,1734424256193,-500.0,0.00025479,6]
[345685295,1734424256203,-500.0,0.00025479,6]
[345685297,1734424256213,-212.80038909,0.00025479,6]
[345685299,1734424256223,-500.0,0.00025479,6]
[345685301,1734424256232,-879.48,0.00025479,6]
[345685303,1734424256243,-500.0,0.00025479,6]
[345685305,1734424256253,-500.0,0.00025479,6]
[345685307,1734424256266,-500.0,0.00025479,6]
[345685309,1734424256277,-500.0,0.00025479,6]
[345685311,1734424256288,-500.0,0.00025479,6]
[345685312,1734424256298,-500.0,0.00025479,6]
[345685314,1734424256308,-500.0,0.00025479,6]
[345685317,1734424256318,-500.0,0.00025479,6]
[345685319,1734424256327,-500.0,0.00025479,6]
[345685321,1734424256338,-500.0,0.00025479,6]
[345685323,1734424256348,-500.0,0.00025479,6]
[345685325,1734424256358,-500.0,0.00025479,6]
[345685327,1734424256368,-500.0,0.00025479,6]
[345685329,1734424256377,-500.0,0.00025479,6]
[345685331,1734424256387,-500.0,0.00025479,6]
[345685333,1734424256397,-500.0,0.00025479,6]
[345685335,1734424256406,-500.0,0.00025479,6]
[345685336,1734424256415,-500.0,0.00025479,6]
[345685338,1734424256425,-1214.35,0.00025479,6]
[345685340,1734424256434,-500.0,0.00025479,6]
[345685342,1734424256443,-500.0,0.00025479,6]
[345685344,1734424256453,-500.0,0.00025479,6]
[345685347,1734424256463,-502.6814046,0.00025479,6]
[345685349,1734424256472,-455.69889578,0.00025479,6]
[345685351,1734424256482,-500.0,0.00025479,6]
[345685353,1734424256492,-500.0,0.00025479,6]
[345685355,1734424256501,-500.0,0.00025479,6]
[345685357,1734424256511,-506.79979267,0.00025479,6]
[345685359,1734424256520,-794.02,0.00025479,6]
[345685361,1734424256529,-500.0,0.00025479,6]
[345685362,1734424256538,-500.0,0.00025479,6]
[345685365,1734424256548,-500.0,0.00025479,6]
[345685367,1734424256557,-500.0,0.00025479,6]
[345685368,1734424256567,-503.01461526,0.00025479,6]
[345685370,1734424256578,-711.23,0.00025479,6]
[345685373,1734424256588,-500.0,0.00025479,6]
[345685374,1734424256598,-625.32261484,0.00025479,2]
[345685377,1734424256608,-500.0,0.00025479,6]
[345685379,1734424256618,-480.29803239,0.00025479,6]
[345685381,1734424256627,-500.0,0.00025479,6]
[345685382,1734424256636,-203.32083134,0.00025479,6]
[345685385,1734424256646,-500.0,0.00025479,6]
[345685386,1734424256661,-500.0,0.00025479,6]
[345685388,1734424256671,-844.97,0.00025479,6]
[345685391,1734424256681,-500.0,0.00025479,6]
[345685392,1734424256691,-500.0,0.00025479,6]
[345685394,1734424256702,-500.0,0.00025479,6]
[345685397,1734424256712,-500.0,0.00025479,6]
[345685398,1734424256721,-500.0,0.00025479,6]
[345685400,1734424256731,-500.0,0.00025479,6]
[345685402,1734424256741,-500.0,0.00025479,6]
[345685403,1734424256750,-500.0,0.00025479,6]
[345685404,1734424256760,-788.73,0.00025479,6]
[345685405,1734424256769,-500.0,0.00025479,6]
[345685406,1734424256778,-500.0,0.00025479,6]
[345685407,1734424256788,-500.0,0.00025479,6]
[345685408,1734424256798,-500.0,0.00025479,6]
[345685409,1734424256809,-627.92,0.00025479,6]
[345685410,1734424256819,-500.0,0.00025479,6]
[345685412,1734424256843,-500.0,0.00025479,6]
[345685414,1734424256853,-910.29,0.00025479,6]
[345685416,1734424256863,-500.0,0.00025479,6]
[345685418,1734424256874,-500.0,0.00025479,6]
[345685420,1734424256883,-774.98,0.00025479,6]
[345685422,1734424256893,-500.0,0.00025479,6]
[345685424,1734424256907,-500.0,0.00025479,6]
[345685426,1734424256916,-500.0,0.00025479,6]
[345685428,1734424256926,-510.60764962,0.00025479,6]
[345685430,1734424256936,-500.0,0.00025479,6]
[345685432,1734424256946,-500.0,0.00025479,6]
[345685434,1734424256955,-1553.26,0.00025479,6]
[345685436,1734424256965,-500.0,0.00025479,6]
[345685438,1734424256974,-500.0,0.00025479,6]
[345685440,1734424256984,-500.0,0.00025479,6]
[345685442,1734424256994,-501.4167063,0.00025479,2]
[345685444,1734424257003,-500.0,0.00025479,6]
[345685446,1734424257013,-500.0,0.00025479,6]
[345685448,1734424257023,-604.52,0.00025479,6]
[345685450,1734424257033,-987.23,0.00025479,6]
[345685452,1734424257043,-780.46,0.00025479,6]
[345685454,1734424257053,-718.59,0.00025479,6]
[345685456,1734424257063,-500.0,0.00025479,6]
[345685458,1734424257072,-500.0,0.00025479,6]
[345685460,1734424257081,-500.0,0.00025479,6]
[345685462,1734424257091,-500.0,0.00025479,6]
[345685464,1734424257101,-500.0,0.00025479,6]
[345685466,1734424257110,-500.0,0.00025479,6]
[345685468,1734424257120,-500.0,0.00025479,6]
[345685470,1734424257130,-500.0,0.00025479,6]
[345685472,1734424257139,-1293.26,0.00025479,6]
[345685474,1734424257148,-500.0,0.00025479,6]
[345685476,1734424257158,-500.0,0.00025479,6]
[345685478,1734424257168,-1910.85,0.00025479,6]
[345685480,1734424257178,-500.0,0.00025479,6]
[345685482,1734424257188,-500.0,0.00025479,6]
[345685484,1734424257196,-2573.33,0.00025479,6]
[345685486,1734424257206,-500.0,0.00025479,6]
[345685488,1734424257215,-500.0,0.00025479,6]
[345685490,1734424257225,-591.97,0.00025479,6]
[345685492,1734424257234,-500.0,0.00025479,6]
[345685494,1734424257243,-2286.48,0.00025479,6]
[345685496,1734424257257,-500.0,0.00025479,6]
[345685498,1734424257267,-500.0,0.00025479,6]
[345685500,1734424257275,-500.0,0.00025479,6]
[345685502,1734424257285,-500.0,0.00025479,6]
[345685504,1734424257297,-500.0,0.00025479,6]
[345685506,1734424257306,-500.0,0.00025479,6]
[345685508,1734424257315,-526.69,0.00025479,6]
[345685510,1734424257324,-903.29,0.00025479,6]
[345685512,1734424257335,-500.0,0.00025479,6]
[345685514,1734424257345,-538.41233489,0.00025479,6]
[345685516,1734424257355,-500.0,0.00025479,6]
[345685518,1734424257364,-1649.3,0.00025479,2]
[345685520,1734424257374,-500.0,0.00025479,6]
[345685522,1734424257383,-500.0,0.00025479,6]
[345685524,1734424257395,-385.11104927,0.00025479,6]
[345685527,1734424257405,-500.0,0.00025479,6]
[345685529,1734424257414,-712.81,0.00025479,6]
[345685530,1734424257423,-500.0,0.00025479,6]
[345685533,1734424257433,-500.0,0.00025479,6]
[345685534,1734424257442,-500.0,0.00025479,6]
[345685536,1734424257451,-500.0,0.00025479,6]
[345685538,1734424257460,-286.43,0.00025479,6]
[345685540,1734424257470,-500.0,0.00025479,6]
[345685542,1734424257480,-500.0,0.00025479,6]
[345685544,1734424257489,-500.0,0.00025479,6]
[345685546,1734424257498,-521.49,0.00025479,6]
[345685548,1734424257508,-516.81041949,0.00025479,6]
[345685550,1734424257519,-677.86,0.00025479,6]
[345685551,1734424257528,-1715.94,0.00025479,6]
[345685553,1734424257538,-545.7,0.00025479,6]
[345685554,1734424257547,-611.56234583,0.00025479,6]
[345685556,1734424257556,-500.0,0.00025479,6]
[345685557,1734424257566,-500.0,0.00025479,6]
[345685559,1734424257575,-500.0,0.00025479,6]
[345685560,1734424257585,-510.65738851,0.00025479,6]
[345685562,1734424257594,-535.96988838,0.00025479,6]
[345685563,1734424257604,-517.11,0.00025479,6]
[345685565,1734424257613,-3107.62,0.00025479,6]
[345685566,1734424257623,-500.0,0.00025479,6]
[345685568,1734424257632,-500.0,0.00025479,6]
[345685576,1734424257752,-500.0,0.00025479,6]
[345685578,1734424257777,-500.0,0.00025479,6]
[345685580,1734424257787,-505.00109232,0.00025479,6]
[345685581,1734424257796,-500.0,0.00025479,6]